fUST/lending_fUST_20241216
["ID","MTS","AMOUNT","RATE_DAILY","PERIOD"]
[345484216,1734286096995,-900000.0,0.00030048,10]
[345484217,1734286102885,-2900000.0,0.00030048,10]
[345484218,1734286113084,-1443106.37240483,0.00030048,10]
[345484219,1734286113110,-1456893.62759517,0.00030048,10]
[345484254,1734286232594,-247.78108122,0.00023335,2]
[345484255,1734286232605,-300.0,0.00023434,2]
[345484256,1734286232614,-300.0,0.00023434,2]
[345484257,1734286232623,-14.35817274,0.00023435,2]
[345484258,1734286232670,-7304.79897069,0.00023435,2]
[345484295,1734286702606,1002.78,0.00024,30]
[345484296,1734286724878,1161.0,0.0002,3]
[345484297,1734286725105,1158.0,0.0002,3]
[345484298,1734286725418,1158.0,0.0002,3]
[345484299,1734286725656,1158.0,0.0002,3]
[345484300,1734286915445,-2900000.0,0.00030083,10]
[345484301,1734286932287,161.306331,0.00013973,2]
[345484302,1734286935551,-2900000.0,0.00030083,10]
[345484309,1734287297755,9278.97784469,0.000125,2]
[345484339,1734287432638,-4807.14292819,0.0002061,2]
[345484340,1734287432650,-52.04873847,0.00021661,2]
[345484341,1734287432719,-109.25759253,0.00021661,2]
[345484342,1734287432730,-297.0,0.00022,2]
[345484343,1734287432740,-255.58432805,0.00022142,2]
[345484344,1734287432802,-710.04798085,0.00022142,2]
[345484345,1734287432812,-297.0,0.00022192,2]
[345484346,1734287432822,-307.4063856,0.00022296,2]
[345484347,1734287432831,-297.0,0.00023014,2]
[345484348,1734287432840,-214.4261398,0.000233,2]
[345484349,1734287432850,-300.0,0.00023434,2]
[345484350,1734287432859,-300.0,0.00023434,2]
[345484352,1734287432872,-251404.41425724,0.00023435,2]
[345484353,1734287432881,-501.01382811,0.00023473,2]
[345484354,1734287432891,-502.66651504,0.00023473,2]
[345484355,1734287432901,-501.63733496,0.00023473,2]
[345484356,1734287432911,-163.01233685,0.00023473,2]
[345484357,1734287432920,-501.31637355,0.00023473,2]
[345484358,1734287432929,-177.0,0.00023473,2]
[345484359,1734287432939,-501.11402369,0.00023473,2]
[345484360,1734287432949,-329.220002,0.00023473,2]
[345484361,1734287432958,-500.0,0.00023473,2]
[345484362,1734287432974,-500.0,0.00023473,2]
[345484363,1734287432987,-500.0,0.00024021,2]
[345484364,1734287432999,-179.21118225,0.00024124,2]
[345484365,1734287433012,-303.0,0.00024164,2]
[345484366,1734287433024,-501.5523229,0.00025,2]
[345484367,1734287433037,-1046.30338765,0.00025,2]
[345484368,1734287433055,-420.0,0.00025428,2]
[345484369,1734287433067,-179.21118222,0.00025568,2]
[345484370,1734287433078,-215.03975,0.00025753,2]
[345484371,1734287433090,-297.0,0.00025775,2]
[345484372,1734287433102,-420.0,0.00025778,2]
[345484373,1734287433115,-399.338,0.0002603,2]
[345484374,1734287433129,-501.95779229,0.00026473,2]
[345484375,1734287433141,-178.89881204,0.00026473,2]
[345484376,1734287433154,-500.0,0.00026473,2]
[345484377,1734287433166,-559.12903357,0.00026473,2]
[345484378,1734287433178,-36207.40896866,0.000265,2]
[345484379,1734287433190,-208402.72319073,0.000267,7]
[345484380,1734287433202,-14781.38,0.000267,2]
[345484381,1734287433215,-215.03975,0.00026706,2]
[345484382,1734287433226,-36018.05686626,0.00027,2]
[345484383,1734287433238,-179.21118222,0.00027012,2]
[345484384,1734287433250,-310.04328701,0.00027043,2]
[345484385,1734287433263,-6324.0,0.000272,2]
[345484386,1734287433274,-297.0,0.00027386,2]
[345484387,1734287433287,-160.26073258,0.00027396,2]
[345484388,1734287433304,-302.48617785,0.00027397,7]
[345484389,1734287433321,-500.0,0.00027397,7]
[345484390,1734287433332,-208.604047,0.00027397,7]
[345484391,1734287433345,-500.0,0.00027397,7]
[345484392,1734287433356,-500.0,0.00027397,7]
[345484393,1734287433367,-500.0,0.00027397,2]
[345484394,1734287433379,-667.72,0.00027397,7]
[345484395,1734287433389,-667.72,0.00027397,7]
[345484396,1734287433401,-667.72,0.00027397,7]
[345484397,1734287433411,-667.72,0.00027397,7]
[345484398,1734287433423,-667.72,0.00027397,7]
[345484399,1734287433434,-667.72,0.00027397,7]
[345484400,1734287433445,-667.72,0.00027397,7]
[345484401,1734287433456,-667.72,0.00027397,7]
[345484402,1734287433468,-667.72,0.00027397,7]
[345484403,1734287433479,-667.72,0.00027397,7]
[345484404,1734287433491,-667.72,0.00027397,7]
[345484405,1734287433502,-667.72,0.00027397,7]
[345484406,1734287433513,-667.72,0.00027397,7]
[345484407,1734287433523,-667.72,0.00027397,7]
[345484408,1734287433534,-415.53134805,0.00027397,2]
[345484409,1734287433549,-500.0,0.00027397,7]
[345484410,1734287433559,-500.0,0.00027397,7]
[345484411,1734287433569,-500.0,0.00027397,7]
[345484412,1734287433579,-10923.47,0.00027397,7]
[345484413,1734287433589,-500.20932247,0.00027397,7]
[345484414,1734287433599,-1301.06,0.00027397,2]
[345484415,1734287433610,-587.0,0.00027591,2]
[345484416,1734287433621,-297.0,0.00027616,2]
[345484417,1734287433631,-215.03975,0.00027659,2]
[345484418,1734287433640,-667.72,0.0002767,7]
[345484419,1734287433652,-500.0,0.00027671,7]
[345484420,1734287433663,-500.0,0.00027671,7]
[345484421,1734287433674,-500.0,0.00027671,7]
[345484422,1734287433685,-500.0,0.00027671,7]
[345484423,1734287433696,-10923.47,0.00027671,7]
[345484424,1734287433706,-1301.06,0.00027671,2]
[345484425,1734287433718,-500.0,0.00027775,5]
[345484426,1734287433728,-388.82184943,0.00027799,2]
[345484427,1734287433739,-585.87437757,0.00027799,2]
[345484428,1734287433749,-369.17346433,0.00027799,2]
[345484429,1734287433761,-500.0,0.00027799,2]
[345484430,1734287433772,-267867.18773607,0.000278,6]
[345484452,1734287438442,-500.0,0.00026473,2]
[345484454,1734287438453,-159.32393815,0.00026499,2]
[345484456,1734287438462,-500.0,0.00026499,2]
[345484458,1734287438472,-102.9603984,0.00026499,2]
[345484460,1734287438486,-98.60038944,0.00026499,2]
[345484462,1734287438497,-153.08547817,0.00026499,2]
[345484464,1734287438507,-500.0,0.00026499,2]
[345484466,1734287438517,-358.07280798,0.00026499,2]
[345484468,1734287438528,-500.0,0.00026499,2]
[345484470,1734287438538,-434.52724997,0.00026499,2]
[345484472,1734287438549,-500.0,0.00026499,2]
[345484474,1734287438559,-500.0,0.00026499,2]
[345484475,1734287438570,-500.0,0.00026499,2]
[345484476,1734287438580,-500.0,0.00026499,2]
[345484477,1734287438590,-500.0,0.00026499,2]
[345484479,1734287438600,-500.0,0.00026499,2]
[345484481,1734287438611,-500.0,0.00026499,2]
[345484482,1734287438622,-500.0,0.00026499,2]
[345484488,1734287438755,-206.44259291,0.00026499,2]
[345484489,1734287438772,-293.55740709,0.00026499,2]
[345484490,1734287438782,-500.0,0.00026499,2]
[345484491,1734287438792,-500.0,0.00026499,2]
[345484492,1734287438802,-500.0,0.00026499,2]
[345484493,1734287438812,-500.0,0.00026499,2]
[345484494,1734287438822,-500.0,0.00026499,2]
[345484495,1734287438831,-500.0,0.00026499,2]
[345484496,1734287438841,-515.22798262,0.00026499,2]
[345484497,1734287438850,-500.0,0.00026499,2]
[345484498,1734287438860,-500.0,0.00026499,2]
[345484499,1734287438869,-500.0,0.00026499,2]
[345484500,1734287438879,-500.0,0.00026499,2]
[345484501,1734287438889,-500.0,0.00026499,2]
[345484502,1734287438899,-500.0,0.00026499,2]
[345484503,1734287438909,-500.0,0.00026499,2]
[345484504,1734287438919,-500.0,0.00026499,2]
[345484505,1734287438930,-500.0,0.00026499,2]
[345484506,1734287438939,-500.0,0.00026499,2]
[345484507,1734287438950,-500.0,0.00026499,2]
[345484508,1734287438960,-500.0,0.00026499,2]
[345484509,1734287438970,-520.86220454,0.00026499,2]
[345484510,1734287438980,-500.0,0.00026499,2]
[345484511,1734287438990,-500.0,0.00026499,2]
[345484512,1734287439000,-500.0,0.00026499,2]
[345484513,1734287439010,-500.0,0.00026499,2]
[345484514,1734287439022,-1000.0,0.00027021,2]
[345484515,1734287439032,-500.0,0.00027397,7]
[345484516,1734287439042,-258.14997357,0.00027671,7]
[345484517,1734287439054,-3132.56452927,0.000278,6]
[345484518,1734287439065,-2305.57019826,0.00027852,2]
[345484519,1734287439077,-3010.7417984,0.00027852,2]
[345484520,1734287439089,-1922.15823016,0.00027852,2]
[345484521,1734287439099,-667.72,0.00027943,7]
[345484522,1734287439108,-500.0,0.00027945,7]
[345484523,1734287439118,-500.0,0.00027945,7]
[345484524,1734287439127,-500.0,0.00027945,7]
[345484525,1734287439138,-10923.47,0.00027945,7]
[345484526,1734287439148,-1301.06,0.00027945,2]
[345484527,1734287439158,-500.0,0.00027973,5]
[345484528,1734287439169,-667.72,0.00027989,7]
[345484529,1734287439179,-667.72,0.00027989,7]
[345484530,1734287439190,-7539.87837786,0.0002799,2]
[345484531,1734287439203,-23076.45717483,0.0002799,2]
[345484532,1734287439213,-804.86926958,0.00028,2]
[345484533,1734287439223,-450.0,0.00028,2]
[345484534,1734287439232,-7089.0,0.00028,2]
[345484535,1734287439242,-667.72,0.00028125,7]
[345484536,1734287439251,-3429.81129497,0.00028126,2]
[345484537,1734287439261,-343.83531759,0.000282,2]
[345484538,1734287439270,-500.0,0.00028219,7]
[345484539,1734287439279,-500.0,0.00028219,7]
[345484540,1734287439289,-500.0,0.00028219,7]
[345484541,1734287439301,-10923.47,0.00028219,7]
[345484542,1734287439312,-1301.06,0.00028219,2]
[345484543,1734287439325,-455.96543,0.00028297,15]
[345484544,1734287439335,-1000.0,0.00028323,5]
[345484545,1734287439344,-587.0,0.00028355,2]
[345484546,1734287439354,-179.21118222,0.00028456,2]
[345484547,1734287439364,-667.72,0.00028492,7]
[345484548,1734287439373,-667.72,0.00028492,7]
[345484549,1734287439382,-667.72,0.00028492,7]
[345484550,1734287439392,-667.72,0.00028492,7]
[345484551,1734287439402,-667.82063151,0.00028492,7]
[345484552,1734287439411,-500.0,0.00028493,7]
[345484553,1734287439420,-500.0,0.00028493,7]
[345484554,1734287439429,-500.0,0.00028493,7]
[345484555,1734287439438,-10923.47,0.00028493,7]
[345484556,1734287439447,-1301.06,0.00028493,2]
[345484557,1734287439456,-2000.0,0.000285,2]
[345484558,1734287439466,-2578.76,0.000285,30]
[345484559,1734287439474,-469.37,0.000285,30]
[345484560,1734287439484,-782.73,0.000285,2]
[345484561,1734287439494,-31764.53823741,0.000285,2]
[345484562,1734287439504,-1000.0,0.00028521,5]
[345484563,1734287439513,-215.03975,0.00028612,2]
[345484564,1734287439523,-14781.38,0.000287,2]
[345484565,1734287439532,-500.0,0.00028767,7]
[345484566,1734287439541,-507.77684285,0.00028767,7]
[345484567,1734287439560,-500.0,0.00028767,7]
[345484568,1734287439569,-10923.47,0.00028767,7]
[345484569,1734287439579,-1301.06,0.00028767,2]
[345484570,1734287439588,-533.0,0.0002885,2]
[345484571,1734287439597,-2169.0,0.0002885,2]
[345484572,1734287439607,-2372.0,0.0002885,2]
[345484573,1734287439616,-297.0,0.00028997,2]
[345484574,1734287439626,-22943.19172663,0.00028999,8]
[345484575,1734287439636,-865.1378129,0.00029,2]
[345484576,1734287439646,-48004.84253613,0.00029,2]
[345484577,1734287439655,-2862.39626601,0.00029,2]
[345484578,1734287439664,-303.16672806,0.00029,2]
[345484579,1734287439674,-500.0,0.00029041,7]
[345484580,1734287439683,-500.0,0.00029041,7]
[345484581,1734287439692,-10923.47,0.00029041,7]
[345484582,1734287439703,-1301.06,0.00029041,2]
[345484583,1734287439712,-178.414,0.00029146,2]
[345484584,1734287439722,-150.786,0.00029146,2]
[345484585,1734287439732,-303.16672806,0.0002929,2]
[345484586,1734287439741,-500.0,0.00029315,7]
[345484587,1734287439750,-500.0,0.00029315,7]
[345484588,1734287439761,-10923.47,0.00029315,7]
[345484589,1734287439770,-1301.06,0.00029315,2]
[345484590,1734287439780,-500.0,0.00029325,5]
[345484591,1734287439790,-161.306331,0.00029349,2]
[345484592,1734287439813,-151.0,0.000294,15]
[345484593,1734287439822,-383093.5298946,0.000295,7]
[345484594,1734287439832,-153.0,0.00029503,2]
[345484595,1734287439841,-153.0,0.00029503,2]
[345484596,1734287439850,-153.0,0.00029503,2]
[345484597,1734287439860,-153.0,0.00029503,2]
[345484598,1734287439869,-153.0,0.00029503,2]
[345484599,1734287439879,-153.0,0.00029503,2]
[345484600,1734287439888,-250.0,0.00029521,5]
[345484601,1734287439898,-538.34390567,0.00029522,5]
[345484602,1734287439907,-215.03975,0.00029565,2]
[345484603,1734287439917,-153.0,0.00029576,2]
[345484604,1734287439927,-153.0,0.00029576,2]
[345484605,1734287439936,-153.0,0.00029576,2]
[345484606,1734287439946,-153.0,0.00029576,2]
[345484607,1734287439955,-153.0,0.00029576,2]
[345484608,1734287439965,-153.0,0.00029576,2]
[345484609,1734287439974,-153.0,0.00029576,2]
[345484611,1734287439985,-153.0,0.00029576,2]
[345484613,1734287439995,-153.0,0.00029576,2]
[345484614,1734287440004,-303.16672806,0.0002958,2]
[345484615,1734287440014,-500.0,0.00029589,7]
[345484616,1734287440023,-500.0,0.00029589,7]
[345484617,1734287440033,-10923.47,0.00029589,7]
[345484618,1734287440042,-1301.06,0.00029589,2]
[345484619,1734287440058,-500.0,0.00029863,7]
[345484620,1734287440068,-500.0,0.00029863,7]
[345484621,1734287440077,-10923.47,0.00029863,7]
[345484622,1734287440086,-1301.06,0.00029863,2]
[345484623,1734287440096,-302.98477347,0.0002987,2]
[345484624,1734287440106,-12003.71036726,0.0002989,2]
[345484625,1734287440116,-179.21118222,0.000299,2]
[345484626,1734287440125,-823.0,0.00029938,2]
[345484627,1734287440135,-2000.0,0.0003,2]
[345484628,1734287440145,-69850.66175855,0.0003,3]
[345484629,1734287440155,-1999.999999,0.0003,2]
[345484630,1734287440164,-878.0,0.0003,5]
[345484631,1734287440174,-151.0,0.0003,120]
[345484632,1734287440184,-151.0,0.0003,120]
[345484633,1734287440193,-1234.96733995,0.0003,10]
[345484634,1734287440203,-290.0,0.0003,2]
[345484636,1734287440213,-2316.0823475,0.0003,30]
[345484637,1734287440222,-2999.999999,0.0003,15]
[345484638,1734287440232,-13237.47150717,0.00030042,7]
[345484639,1734287440242,-500.0,0.00030048,10]
[345484640,1734287440252,-198.92778213,0.00030048,10]
[345484641,1734287440262,-150.40307231,0.00030048,10]
[345484642,1734287440271,-150.89363089,0.00030048,10]
[345484643,1734287440281,-150.09,0.00030048,10]
[345484644,1734287440290,-158.15873602,0.00030048,10]
[345484645,1734287440309,-500.0,0.00030048,10]
[345484647,1734287440322,-500.0,0.00030048,10]
[345484648,1734287440332,-151.0,0.00030049,15]
[345484650,1734287440342,-402.93093709,0.00030068,5]
[345484652,1734287440352,-51858.80398981,0.00030093,2]
[345484654,1734287440363,-102300.28024978,0.00030093,2]
[345484655,1734287440373,-3289.16523846,0.00030094,10]
[345484656,1734287440388,-1446.3066355,0.00030094,10]
[345484660,1734287440638,-1137.907495,0.00028627,15]
[345484661,1734287440647,-11322.08743431,0.00030094,10]
[345484679,1734287443964,-361.95984905,0.00030094,10]
[345484687,1734287446572,-878.83841204,0.00028627,15]
[345484736,1734287856792,159.749993,0.00013973,2]
[345484833,1734288638950,-159.749993,0.00021661,2]
[345484834,1734288638961,-671.93379954,0.00025755,2]
[345484835,1734288638970,-172.0917906,0.00026008,2]
[345484836,1734288638981,-285.14518978,0.000261,5]
[345484840,1734288640788,-368.97046807,0.000261,5]
[345484854,1734288643858,-877.68987055,0.000261,5]
[345484855,1734288643872,-300.0,0.00026193,2]
[345484856,1734288643889,-300.0,0.00026193,2]
[345484857,1734288643903,-24900.0,0.00026194,2]
[345484858,1734288643914,-584.27481225,0.00026237,2]
[345484860,1734288643924,-209.34408,0.00026357,2]
[345484862,1734288643934,-184.7619865,0.0002638,2]
[345484864,1734288643943,-280.7778225,0.00026394,2]
[345484866,1734288643953,-250.0,0.00026556,2]
[345484867,1734288643963,-1835.3155764,0.00026647,2]
[345484868,1734288643973,-967.9263791,0.00026707,2]
[345484870,1734288643982,-255.33777,0.00026745,2]
[345484872,1734288643993,-660.0,0.00026953,2]
[345484874,1734288644003,-803.64483,0.00027297,2]
[345484875,1734288644014,-255.33777,0.00027735,2]
[345484876,1734288644024,-175.213978,0.00027919,2]
[345484877,1734288644034,-156.73214988,0.00028119,2]
[345484878,1734288644044,-867.38,0.0002814,2]
[345484879,1734288644054,-500.0,0.0002814,7]
[345484880,1734288644064,-500.0,0.0002814,7]
[345484881,1734288644073,-7282.31,0.0002814,7]
[345484882,1734288644083,-420.0,0.00028341,2]
[345484883,1734288644093,-867.38,0.00028414,2]
[345484884,1734288644103,-500.0,0.00028414,7]
[345484885,1734288644113,-500.0,0.00028414,7]
[345484886,1734288644125,-6137.07225444,0.00028414,7]
[345484887,1734288644139,-1145.23774556,0.00028414,7]
[345484888,1734288644148,-156.73214987,0.00028429,2]
[345484889,1734288644157,-648.16704779,0.000285,2]
[345486092,1734288894759,162.437759,0.00013973,2]
[345486254,1734289778115,162.378211,0.00013973,2]
[345486306,1734289836652,-300.0,0.00020806,2]
[345486307,1734289836662,-300.0,0.00020806,2]
[345486308,1734289836672,-162.378211,0.00020807,2]
[345486309,1734289836681,-500.0,0.00020807,2]
[345486310,1734289836691,-500.0,0.00020807,2]
[345486311,1734289836702,-500.0,0.00020807,2]
[345486312,1734289836722,-500.0,0.00020807,2]
[345486313,1734289836731,-500.0,0.00020807,2]
[345486314,1734289836741,-500.0,0.00020807,2]
[345486315,1734289836751,-500.0,0.00020807,2]
[345486316,1734289836761,-194.38531522,0.00020807,2]
[345486317,1734289836771,-420.0,0.00022636,2]
[345486318,1734289836780,-420.0,0.00022886,2]
[345486319,1734289836790,-2632.95180499,0.000229,2]
[345486320,1734289836799,-249.0,0.00023,2]
[345486321,1734289836809,-587.0,0.00024628,2]
[345486322,1734289836819,-485.0,0.00025,2]
[345486323,1734289836829,-587.0,0.00025175,2]
[345486324,1734289836839,-199.8,0.000255,2]
[345486325,1734289836849,-198.816,0.000255,10]
[345486326,1734289836858,-152.0,0.00025683,2]
[345486327,1734289836869,-24900.0,0.00025966,2]
[345486328,1734289836880,-160.16672519,0.00025973,2]
[345486329,1734289836889,-500.0,0.00025973,2]
[345486330,1734289836900,-156.73214987,0.00026078,2]
[345486331,1734289836909,-174.290669,0.00026178,2]
[345486332,1734289836919,-209.34408,0.00026219,2]
[345486333,1734289836929,-249.293067,0.0002622,2]
[345486334,1734289836938,-192.0,0.00026261,2]
[345486335,1734289836948,-1284.6388112,0.00026506,2]
[345486336,1734289836958,-500.0,0.00026521,2]
[345486337,1734289836967,-823.0,0.00026795,2]
[345486338,1734289836977,-152.0,0.00026852,2]
[345486339,1734289836987,-156.73214987,0.00027056,2]
[345486340,1734289836997,-249.293067,0.0002719,2]
[345486341,1734289837006,-525.9142776,0.00027194,2]
[345486342,1734289837016,-1144.2843535,0.00027321,2]
[345486343,1734289837026,-10025.96215661,0.00027367,2]
[345486344,1734289837036,-507.77684285,0.00027397,7]
[345486345,1734289837046,-500.0,0.00027397,7]
[345486346,1734289837056,-8040.89,0.00027397,7]
[345486347,1734289837066,-1787.35,0.00027397,2]
[345486348,1734289837075,-203648.76253894,0.00027417,2]
[345486349,1734289837085,-69779.10282952,0.00027417,2]
[345486350,1734289837094,-10025.96215661,0.00027434,2]
[345486351,1734289837104,-500.0,0.000275,2]
[345486352,1734289837114,-162.378211,0.00027641,2]
[345486353,1734289837124,-500.0,0.00027671,7]
[345486354,1734289837258,-8040.89,0.00027671,7]
[345486355,1734289837268,-1787.35,0.00027671,2]
[345486356,1734289837277,-10025.96215661,0.00027781,2]
[345486357,1734289837287,-500.0,0.00027945,7]
[345486358,1734289837297,-8040.89,0.00027945,7]
[345486359,1734289837306,-1787.35,0.00027945,2]
[345486360,1734289837316,-156.73214987,0.00028035,2]
[345486362,1734289837326,-10025.96215661,0.00028089,2]
[345486363,1734289837339,-249.293067,0.0002816,2]
[345486364,1734289837349,-500.0,0.00028219,7]
[345486365,1734289837359,-8040.89,0.00028219,7]
[345486366,1734289837368,-1787.35,0.00028219,2]
[345486367,1734289837380,-748.0,0.00028297,15]
[345486368,1734289837391,-10025.96215664,0.00028425,2]
[345486369,1734289837401,-500.0,0.00028492,7]
[345486370,1734289837410,-500.0,0.00028493,7]
[345486371,1734289837422,-8040.89,0.00028493,7]
[345486372,1734289837432,-639.64,0.000285,2]
[345486373,1734289837441,-502.10783491,0.00028573,5]
[345486374,1734289837451,-500.0,0.00028573,5]
[345486375,1734289837461,-382.496,0.0002859,2]
[345486376,1734289837471,-500.0,0.00028766,7]
[345486377,1734289837483,-492.48700898,0.00028767,7]
[345486379,1734289837493,-8040.89,0.00028767,7]
[345486380,1734289837502,-303.16672803,0.00029,2]
[345486381,1734289837512,-156.73214987,0.00029013,2]
[345486382,1734289837522,-500.0,0.0002904,7]
[345486383,1734289837531,-2169.0,0.00029119,2]
[345486384,1734289837541,-533.0,0.00029119,2]
[345486385,1734289837550,-2372.0,0.00029119,2]
[345486386,1734289837560,-178.827236,0.00029129,2]
[345486387,1734289837569,-249.293067,0.00029131,2]
[345486388,1734289837579,-1152.0,0.00029153,2]
[345486389,1734289837589,-500.62880666,0.00029273,5]
[345486390,1734289837598,-501.41627614,0.00029273,5]
[345486391,1734289837608,-500.0,0.00029314,7]
[345486392,1734289837617,-153.0,0.00029508,2]
[345486393,1734289837629,-153.0,0.00029508,2]
[345486395,1734289837639,-153.0,0.00029508,2]
[345486397,1734289837648,-153.0,0.00029508,2]
[345486398,1734289837657,-153.0,0.00029508,2]
[345486399,1734289837665,-153.0,0.00029508,2]
[345486400,1734289837675,-153.0,0.00029508,2]
[345486401,1734289837683,-153.0,0.00029508,2]
[345486402,1734289837692,-153.0,0.00029508,2]
[345486403,1734289837702,-153.0,0.00029508,2]
[345486404,1734289837712,-153.0,0.00029508,2]
[345486405,1734289837722,-153.0,0.00029508,2]
[345486406,1734289837731,-153.0,0.00029508,2]
[345486407,1734289837741,-153.0,0.00029508,2]
[345486408,1734289837750,-153.0,0.00029508,2]
[345486409,1734289837762,-153.0,0.00029508,2]
[345486410,1734289837771,-153.0,0.00029508,2]
[345486412,1734289837781,-153.0,0.00029508,2]
[345486414,1734289837790,-178.827236,0.00029565,2]
[345486415,1734289837799,-500.0,0.00029588,7]
[345486417,1734289837809,-941.0,0.00029666,120]
[345486418,1734289837819,-152.0,0.000297,120]
[345486419,1734289837828,-10297.95885299,0.00029725,5]
[345486420,1734289837837,-500.0,0.00029862,7]
[345486421,1734289837847,-151.0,0.000299,16]
[345486422,1734289837857,-151.0,0.000299,20]
[345486423,1734289837867,-173.59,0.00029979,7]
[345486424,1734289837878,-156.73214987,0.00029991,2]
[345486425,1734289837888,-160.98591191,0.0003,120]
[345486426,1734289837897,-2000.0,0.0003,2]
[345486427,1734289837906,-151.0,0.0003,120]
[345486428,1734289837915,-151.0,0.0003,120]
[345486430,1734289837924,-1700.0,0.0003,60]
[345486431,1734289837934,-2000.0,0.0003,2]
[345486432,1734289837943,-878.0,0.0003,5]
[345486433,1734289837953,-290.0,0.0003,2]
[345486434,1734289837963,-178.827236,0.0003,2]
[345486435,1734289837973,-504.15351589,0.00030073,5]
[345486436,1734289837983,-500.0,0.00030073,5]
[345486437,1734289837992,-500.0,0.00030073,5]
[345486438,1734289838003,-500.50091017,0.00030073,5]
[345486439,1734289838013,-501.27777099,0.00030073,5]
[345486440,1734289838024,-161.88876978,0.00030073,5]
[345486441,1734289838035,-152.384355,0.00030079,7]
[345486442,1734289838045,-152.012019,0.00030079,7]
[345486443,1734289838057,-153.331895,0.00030079,7]
[345486444,1734289838069,-454.14829881,0.0003009,2]
[345486445,1734289838079,-393.5923317,0.0003009,2]
[345486446,1734289838089,-500.0,0.0003009,2]
[345486447,1734289838099,-634.84796928,0.0003009,2]
[345486448,1734289838109,-500.0,0.0003009,2]
[345486449,1734289838118,-153.729177,0.0003009,7]
[345486450,1734289838129,-151.0,0.0003009,7]
[345486451,1734289838139,-151.0,0.0003009,7]
[345486452,1734289838148,-151.0,0.0003009,7]
[345486453,1734289838159,-151.0,0.0003009,7]
[345486454,1734289838168,-151.0,0.0003009,7]
[345486455,1734289838178,-151.0,0.0003009,7]
[345486456,1734289838188,-151.0,0.0003009,7]
[345486457,1734289838197,-151.0,0.0003009,7]
[345486458,1734289838207,-151.0,0.0003009,7]
[345486459,1734289838220,-151.0,0.0003009,7]
[345486460,1734289838229,-151.0,0.0003009,7]
[345486461,1734289838239,-151.0,0.0003009,7]
[345486462,1734289838249,-155.526388,0.0003009,7]
[345486463,1734289838259,-151.0,0.0003009,7]
[345486464,1734289838268,-151.0,0.0003009,7]
[345486465,1734289838277,-168.2431,0.0003009,7]
[345486466,1734289838287,-168.2431,0.0003009,7]
[345486467,1734289838296,-168.2431,0.0003009,7]
[345486468,1734289838306,-168.2431,0.0003009,7]
[345486469,1734289838315,-168.2431,0.0003009,7]
[345486470,1734289838325,-168.2431,0.0003009,7]
[345486471,1734289838334,-168.2431,0.0003009,7]
[345486472,1734289838347,-168.2431,0.0003009,7]
[345486473,1734289838357,-168.2431,0.0003009,7]
[345486474,1734289838367,-168.2431,0.0003009,7]
[345486475,1734289838384,-168.2431,0.0003009,7]
[345486476,1734289838395,-168.2431,0.0003009,7]
[345486477,1734289838405,-168.2431,0.0003009,7]
[345486478,1734289838416,-168.2431,0.0003009,7]
[345486479,1734289838426,-168.2431,0.0003009,7]
[345486480,1734289838435,-168.2431,0.0003009,7]
[345486481,1734289838446,-168.2431,0.0003009,7]
[345486482,1734289838455,-168.2431,0.0003009,7]
[345486483,1734289838466,-168.2431,0.0003009,7]